fUSD/lending_fUSD_20240126
["ID","MTS","AMOUNT","RATE_DAILY","PERIOD"]
[312819180,1706296247726,-151.0,0.00032877,7]
[312819182,1706296247735,-151.0,0.00032877,7]
[312819184,1706296247744,-235.005444,0.00032877,7]
[312819186,1706296247754,-750.56,0.00032903,2]
[312819188,1706296247763,-500.0,0.00032912,3]
[312819190,1706296247773,-150.0,0.0003292,2]
[312819192,1706296247783,-500.0,0.00032921,3]
[312819194,1706296247792,-500.0,0.0003293,3]
[312819196,1706296247801,-1347.34197202,0.00032935,2]
[312819198,1706296247810,-500.0,0.00032939,3]
[312819200,1706296247819,-500.0,0.00032947,3]
[312819202,1706296247828,-500.0,0.00032956,3]
[312819204,1706296247837,-500.96,0.00032963,10]
[312819206,1706296247846,-500.0,0.00032965,3]
[312819208,1706296247855,-153.868495,0.00032973,2]
[312819210,1706296247865,-4813.818333,0.00032973,2]
[312819212,1706296247874,-184.370222,0.00032973,2]
[312819214,1706296247883,-7250.7275,0.00032973,2]
[312819216,1706296247893,-1285.283567,0.00032973,2]
[312819218,1706296247903,-196.851972,0.00032973,2]
[312819220,1706296247912,-175.998143,0.00032973,2]
[312819222,1706296247921,-425.904315,0.00032973,2]
[312819224,1706296247930,-3515.887473,0.00032973,2]
[312819226,1706296247939,-166.116156,0.00032973,2]
[312819228,1706296247949,-1316.448037,0.00032973,2]
[312819230,1706296247958,-1508.477997,0.00032973,2]
[312819232,1706296247968,-2239.7432,0.00032973,2]
[312819234,1706296247977,-1308.780669,0.00032973,2]
[312819236,1706296247990,-2208.949041,0.00032973,2]
[312819238,1706296248000,-1952.655819,0.00032973,2]
[312819240,1706296248010,-1843.807113,0.00032973,2]
[312819242,1706296248020,-6626.847122,0.00032973,2]
[312819244,1706296248030,-334.132462,0.00032973,2]
[312819246,1706296248039,-3809.8849869,0.00032977,2]
[312819248,1706296248049,-25413.9270087,0.00032977,2]
[312819250,1706296248058,-5183.3017436,0.00032977,2]
[312819252,1706296248068,-50000.0,0.00032999,3]
[312819254,1706296248079,-1000.0,0.00033,3]
[312819256,1706296248089,-1472.95540509,0.00033,5]
[312819258,1706296248099,-258809.81381593,0.00033,4]
[312819260,1706296248108,-750.0,0.00033,3]
[312819262,1706296248118,-150.0,0.00033021,2]
[312819264,1706296248128,-500.0,0.00033074,10]
[312819265,1706296248139,-372.0,0.000332,22]
[312819268,1706296248150,-179.0,0.00033259,2]
[312819270,1706296248160,-188.0,0.00033259,2]
[312819271,1706296248170,-150.57471312,0.00033324,2]
[312819274,1706296248182,-1000.0,0.00033333,2]
[312819275,1706296248192,-153.868495,0.00033375,2]
[312819277,1706296248201,-4813.818333,0.00033375,2]
[312819280,1706296248211,-184.370222,0.00033375,2]
[312819281,1706296248222,-7250.7275,0.00033375,2]
[312819283,1706296248234,-1285.283567,0.00033375,2]
[312819284,1706296248243,-196.851972,0.00033375,2]
[312819285,1706296248253,-425.904315,0.00033375,2]
[312819286,1706296248264,-3515.887473,0.00033375,2]
[312819287,1706296248277,-166.116156,0.00033375,2]
[312819288,1706296248289,-1316.448037,0.00033375,2]
[312819289,1706296248300,-1508.477997,0.00033375,2]
[312819290,1706296248309,-2239.7432,0.00033375,2]
[312819291,1706296248319,-1308.780669,0.00033375,2]
[312819292,1706296248329,-2208.949041,0.00033375,2]
[312819293,1706296248339,-1952.655819,0.00033375,2]
[312819294,1706296248349,-1843.807113,0.00033375,2]
[312819295,1706296248357,-6626.847122,0.00033375,2]
[312819296,1706296248367,-334.132462,0.00033375,2]
[312819297,1706296248376,-402.52,0.00033425,2]
[312819298,1706296248386,-402.52,0.00033425,2]
[312819299,1706296248398,-399.88,0.00033425,2]
[312819300,1706296248407,-151.0,0.00033444,7]
[312819301,1706296248419,-10869.35,0.00033479,2]
[312819302,1706296248430,-833.33334,0.0003348,2]
[312819303,1706296248439,-393.51942431,0.000335,2]
[312819304,1706296248449,-209.0,0.00033579,2]
[312819305,1706296248459,-150.0,0.00033598,2]
[312819306,1706296248468,-152.0,0.00033617,4]
[312819307,1706296248478,-1000.0,0.00033677,2]
[312819308,1706296248487,-372.0,0.000337,22]
[312819309,1706296248497,-150.0,0.00033732,2]
[312819310,1706296248506,-153.868495,0.00033777,2]
[312819311,1706296248515,-4813.818333,0.00033777,2]
[312819312,1706296248525,-184.370222,0.00033777,2]
[312819313,1706296248534,-7250.7275,0.00033777,2]
[312819314,1706296248543,-1285.283567,0.00033777,2]
[312819315,1706296248552,-196.851972,0.00033777,2]
[312819316,1706296248561,-175.998143,0.00033777,2]
[312819317,1706296248570,-425.904315,0.00033777,2]
[312819318,1706296248579,-3515.887473,0.00033777,2]
[312819319,1706296248588,-174.853485,0.00033777,2]
[312819320,1706296248597,-166.116156,0.00033777,2]
[312819321,1706296248606,-181.200001,0.00033777,2]
[312819322,1706296248616,-1316.448037,0.00033777,2]
[312819323,1706296248625,-1508.477997,0.00033777,2]
[312819324,1706296248633,-2239.7432,0.00033777,2]
[312819325,1706296248645,-166.625299,0.00033777,2]
[312819326,1706296248654,-1308.780669,0.00033777,2]
[312819327,1706296248663,-2208.949041,0.00033777,2]
[312819328,1706296248671,-1952.655819,0.00033777,2]
[312819329,1706296248680,-1843.807113,0.00033777,2]
[312819330,1706296248689,-6626.847122,0.00033777,2]
[312819331,1706296248697,-334.132462,0.00033777,2]
[312819332,1706296248706,-150.0,0.00033797,2]
[312819333,1706296248715,-157.87783508,0.000338,4]
[312819334,1706296248725,-755.7081452,0.000338,2]
[312819335,1706296248734,-2301.30537444,0.00033809,6]
[312819336,1706296248743,-206.0,0.00033874,12]
[312819337,1706296248752,-1998.1,0.000339,2]
[312819338,1706296248762,-150.0,0.0003392,2]
[312819339,1706296248771,-150.0,0.00033929,2]
[312819340,1706296248780,-1253.47677354,0.00033973,2]
[312819341,1706296248790,-688.9912839,0.00033976,2]
[312819342,1706296248798,-5196.1761236,0.00033976,2]
[312819343,1706296248807,-58896.0389999,0.00033976,2]
[312819344,1706296248817,-978.873982,0.00033976,2]
[312819345,1706296248826,-50000.0,0.00034,4]
[312819346,1706296248835,-1000.0,0.00034,4]
[312819347,1706296248845,-507.16322137,0.00034,4]
[312819348,1706296248854,-156.43675833,0.00034,4]
[312819349,1706296248864,-358.388269,0.00034,2]
[312819350,1706296248874,-150.57471312,0.00034068,2]
[312819351,1706296248883,-1998.1,0.000341,2]
[312819352,1706296248896,-833.33333,0.000341,2]
[312819353,1706296248909,-151.0,0.00034126,4]
[312819354,1706296248918,-574.91002429,0.0003417,10]
[312819355,1706296248927,-150.0,0.00034175,2]
[312819356,1706296248937,-372.0,0.000342,23]
[312819357,1706296248946,-174.0624444,0.00034247,2]
[312819358,1706296248956,-303.9,0.0003451,2]
[312819359,1706296248966,-2340.285305,0.0003452,2]
[312819360,1706296248975,-150.0,0.00034548,10]
[312819361,1706296248986,-372.0,0.000347,23]
[312819362,1706296248996,-163.76,0.00034703,2]
[312819363,1706296249005,-833.33334,0.0003473,2]
[312819364,1706296249015,-150.0,0.00034751,2]
[312819365,1706296249024,-3510.427958,0.00034794,2]
[312819366,1706296249034,-755.7081452,0.000348,2]
[312819367,1706296249043,-150.57471312,0.00034813,2]
[312819368,1706296249053,-151.0,0.00034823,2]
[312819369,1706296249064,-2029.1116242,0.00034852,2]
[312819370,1706296249074,-162.80330788,0.00034899,14]
[312819371,1706296249084,-8997.48437145,0.000349,4]
[312819372,1706296249093,-10647.34007611,0.000349,2]
[312819373,1706296249102,-2745.15371045,0.000349,2]
[312819374,1706296249111,-2745.15371042,0.000349,2]
[312819375,1706296249122,-2745.15371042,0.000349,2]
[312819376,1706296249133,-2745.15371042,0.000349,2]
[312819377,1706296249143,-2745.15371042,0.000349,2]
[312819378,1706296249154,-2745.15371042,0.000349,2]
[312819379,1706296249164,-2745.15371042,0.000349,2]
[312819380,1706296249177,-2745.15371042,0.000349,2]
[312819381,1706296249187,-4680.570611,0.00034931,2]
[312819382,1706296249280,-1906.5748001,0.00034976,2]
[312819383,1706296249290,-21610.0649999,0.00034976,2]
[312819384,1706296249300,-357.6772514,0.00034976,2]
[312819385,1706296249310,-1392.1191239,0.00034976,2]
[312819386,1706296249320,-26836.7791437,0.00034976,2]
[312819387,1706296249331,-5473.4997893,0.00034976,2]
[312819388,1706296249340,-166.656318,0.00034976,7]
[312819389,1706296249349,-151.0,0.00034976,7]
[312819390,1706296249358,-1737.85677466,0.0003499,2]
[312819391,1706296249367,-50000.0,0.00035,5]
[312819392,1706296249376,-1000.0,0.00035,5]
[312819393,1706296249385,-276.51064645,0.00035,3]
[312819394,1706296249396,-155.36568944,0.00035,4]
[312819395,1706296249406,-642.644731,0.00035,2]
[312819396,1706296249416,-155.0,0.00035,2]
[312819397,1706296249426,-11600.0,0.00035,2]
[312819398,1706296249435,-165.0,0.00035,2]
[312819399,1706296249444,-5000.0,0.00035,2]
[312819400,1706296249456,-1486.97119062,0.00035,2]
[312819401,1706296249467,-397.0,0.00035,5]
[312819402,1706296249477,-2600.0,0.00035,7]
[312819403,1706296249487,-20000.0,0.00035,14]
[312819404,1706296249496,-2500.0,0.00035,2]
[312819405,1706296249505,-155.50563792,0.00035,4]
[312819406,1706296249514,-277.27175027,0.00035,2]
[312819407,1706296249524,-1000.0,0.00035,2]
[312819408,1706296249534,-1265.5136729,0.00035,4]
[312819409,1706296249544,-452.37693283,0.00035,4]
[312819410,1706296249553,-155.3213467,0.00035,4]
[312819411,1706296249562,-186.13847865,0.00035,4]
[312819412,1706296249572,-517.18046118,0.00035,14]
[312819413,1706296249581,-236.50137467,0.00035,2]
[312819414,1706296249590,-800.0,0.00035,3]
[312819415,1706296249600,-151.0,0.00035,7]
[312819416,1706296249609,-1574.94701494,0.00035,2]
[312819417,1706296249618,-1624.61368495,0.00035,2]
[312819418,1706296249628,-151.0,0.00035,7]
[312819419,1706296249639,-151.0,0.00035,7]
[312819420,1706296249648,-151.0,0.00035,7]
[312819421,1706296249657,-151.0,0.00035,7]
[312819422,1706296249667,-151.0,0.00035,7]
[312819423,1706296249676,-151.0,0.00035,7]
[312819424,1706296249686,-151.0,0.00035,7]
[312819425,1706296249695,-151.0,0.00035,7]
[312819426,1706296249704,-871.360866,0.00035,7]
[312819427,1706296249714,-151.0,0.00035,7]
[312819428,1706296249723,-871.360866,0.00035,7]
[312819429,1706296249732,-505.82332,0.00035,7]
[312819430,1706296249741,-505.82332,0.00035,7]
[312819431,1706296249750,-481.541857,0.00035,7]
[312819432,1706296249760,-481.541857,0.00035,7]
[312819433,1706296249769,-151.0,0.00035,7]
[312819434,1706296249778,-809.763732,0.00035,7]
[312819435,1706296249787,-2603.84966,0.00035,7]
[312819436,1706296249797,-809.763732,0.00035,7]
[312819437,1706296249807,-2603.84966,0.00035,7]
[312819438,1706296249816,-465.977409,0.00035,7]
[312819439,1706296249826,-465.977409,0.00035,7]
[312819440,1706296249835,-151.0,0.00035,7]
[312819441,1706296249845,-47189.45565193,0.00035,2]
[312819442,1706296249854,-47189.45565193,0.00035,2]
[312819443,1706296249864,-5649.805454,0.00035,7]
[312819444,1706296249873,-5649.805454,0.00035,7]
[312819445,1706296249883,-1000.0,0.00035,2]
[312819446,1706296249893,-874.88675548,0.00035,2]
[312819447,1706296249902,-874.88675548,0.00035,2]
[312819448,1706296249914,-874.88675548,0.00035,2]
[312819449,1706296249923,-874.88675548,0.00035,2]
[312819450,1706296249933,-874.88675548,0.00035,2]
[312819451,1706296249943,-500.0,0.00035,2]
[312819452,1706296249952,-5850.713264,0.00035068,2]
[312819453,1706296249962,-750.56,0.00035167,2]
[312819454,1706296249973,-2301.30537444,0.00035173,7]
[312819455,1706296249985,-151.0127,0.00035198,10]
[312819456,1706296249996,-1998.1,0.000352,2]
[312819457,1706296250005,-372.0,0.000352,24]
[312819458,1706296250015,-150.0,0.00035328,2]
[312819459,1706296250024,-8190.99857,0.00035342,2]
[312819460,1706296250033,-833.33333,0.0003535,2]
[312819461,1706296250043,-1998.1,0.000354,2]
[312819462,1706296250053,-152.0,0.00035466,5]
[312819463,1706296250062,-151.0127,0.00035498,12]
[312819464,1706296250072,-2745.15371042,0.00035532,2]
[312819465,1706296250082,-150.57471312,0.00035557,2]
[312819466,1706296250092,-150.0,0.00035616,2]
[312819467,1706296250101,-300.0,0.00035616,7]
[312819468,1706296250110,-450.0,0.00035616,12]
[312819469,1706296250120,-321.36106261,0.00035616,17]
[312819470,1706296250129,-500.0,0.00035616,2]
[312819471,1706296250138,-500.0,0.00035616,2]
[312819472,1706296250147,-500.0,0.00035616,2]
[312819473,1706296250156,-500.0,0.00035616,2]
[312819474,1706296250165,-500.0,0.00035616,2]
[312819475,1706296250174,-500.0,0.00035616,2]
[312819476,1706296250184,-500.0,0.00035616,2]
[312819477,1706296250193,-500.0,0.00035616,2]
[312819479,1706296250202,-500.0,0.00035616,2]
[312819480,1706296250211,-500.0,0.00035616,2]
[312819481,1706296250220,-500.0,0.00035616,2]
[312819482,1706296250229,-500.0,0.00035616,2]
[312819483,1706296250239,-500.0,0.00035616,2]
[312819484,1706296250248,-500.0,0.00035616,2]
[312819485,1706296250257,-500.0,0.00035616,2]
[312819486,1706296250266,-500.0,0.00035616,2]
[312819487,1706296250276,-500.0,0.00035616,2]
[312819488,1706296250286,-500.0,0.00035616,2]
[312819489,1706296250295,-500.0,0.00035616,2]
[312819490,1706296250304,-500.0,0.00035616,2]
[312819491,1706296250314,-3863.18,0.00035616,2]
[312819492,1706296250323,-7522.96,0.00035616,2]
[312819493,1706296250333,-196.17254293,0.000357,2]
[312819494,1706296250342,-6429.36,0.000357,7]
[312819495,1706296250352,-372.0,0.000357,24]
[312819496,1706296250362,-9445.72,0.000357,7]
[312819497,1706296250371,-4916.47418524,0.00035734,2]
[312819498,1706296250380,-151.0127,0.00035798,10]
[312819499,1706296250390,-755.7081452,0.000358,2]
[312819500,1706296250399,-1372.29539625,0.00035888,30]
[312819501,1706296250408,-204.07049,0.00035888,7]
[312819502,1706296250418,-204.07049,0.00035888,7]
[312819503,1706296250427,-366.04607581,0.00035899,2]
[312819504,1706296250436,-284.08397793,0.00035899,2]
[312819505,1706296250446,-1287.01433472,0.000359,2]
[312819506,1706296250455,-7448.17,0.000359,3]
[312819507,1706296250465,-7448.17,0.000359,3]
[312819508,1706296250474,-7448.17,0.000359,3]
[312819509,1706296250483,-7448.17,0.000359,3]
[312819510,1706296250493,-7448.17,0.000359,3]
[312819511,1706296250502,-7448.17,0.000359,3]
[312819512,1706296250511,-7448.17,0.000359,3]
[312819513,1706296250521,-7448.17,0.000359,3]
[312819514,1706296250530,-7448.17,0.000359,3]
[312819515,1706296250539,-7448.17,0.000359,3]
[312819516,1706296250548,-7448.17,0.000359,3]
[312819517,1706296250557,-7448.17,0.000359,3]
[312819518,1706296250566,-7448.17,0.000359,3]
[312819519,1706296250575,-7448.17,0.000359,3]
[312819520,1706296250584,-7448.17,0.000359,3]
[312819521,1706296250593,-7448.17,0.000359,3]
[312819522,1706296250602,-7448.17,0.000359,3]
[312819523,1706296250611,-7448.17,0.000359,3]
[312819524,1706296250620,-7448.17,0.000359,3]
[312819525,1706296250630,-7448.17,0.000359,3]
[312819526,1706296250639,-158.26,0.000359,3]
[312819527,1706296250649,-158.26,0.000359,3]
[312819528,1706296250658,-158.26,0.000359,3]
[312819529,1706296250667,-158.26,0.000359,3]
[312819530,1706296250676,-158.26,0.000359,3]
[312819531,1706296250685,-152.96,0.000359,3]
[312819532,1706296250694,-152.96,0.000359,3]
[312819533,1706296250784,-152.96,0.000359,3]
[312819534,1706296250794,-152.96,0.000359,3]
[312819535,1706296250803,-152.96,0.000359,3]
[312819536,1706296250812,-152.96,0.000359,3]
[312819537,1706296250821,-152.96,0.000359,3]
[312819538,1706296250831,-152.96,0.000359,3]
[312819539,1706296250840,-150.0,0.00035905,2]
[312819540,1706296250850,-305.87444542,0.0003591,5]
[312819541,1706296250859,-746.984996,0.00035975,2]
[312819542,1706296250868,-50000.0,0.00036,6]
[312819543,1706296250877,-1000.0,0.00036,6]
[312819544,1706296250887,-255.0,0.00036,2]
[312819545,1706296250897,-301.85581495,0.00036,4]
[312819546,1706296250910,-11344.23287517,0.00036,30]
[312819547,1706296250919,-1000.0,0.00036,5]
[312819548,1706296250928,-151.0,0.00036,7]
[312819549,1706296250938,-151.0,0.00036,7]
[312819550,1706296250949,-9445.72,0.00036,7]
[312819551,1706296250958,-400.0,0.0003607,2]
[312819552,1706296250967,-301.58687511,0.0003607,2]
[312819553,1706296250977,-6429.36,0.000362,7]
[312819554,1706296250987,-372.0,0.000362,25]
[312819555,1706296250997,-303.9,0.0003622,2]
[312819556,1706296251006,-9445.72,0.000363,7]
[312819557,1706296251015,-1194.67382007,0.00036301,30]
[312819558,1706296251024,-150.57471312,0.00036302,2]
[312819559,1706296251034,-403.38101257,0.000364,7]
[312819560,1706296251044,-156.47,0.00036438,2]
[312819561,1706296251053,-156.47,0.00036438,90]
[312819562,1706296251063,-150.0,0.00036482,2]
[312819563,1706296251073,-151.0127,0.00036498,12]
[312819564,1706296251082,-5000.0,0.000365,25]
[312819565,1706296251092,-1998.1,0.000365,2]
[312819566,1706296251101,-163.76,0.0003653,2]
[312819567,1706296251110,-2301.30537444,0.00036536,9]
[312819568,1706296251120,-209.0,0.00036579,2]
[312819569,1706296251129,-757.77534375,0.000366,2]
[312819570,1706296251139,-9445.72,0.000366,7]
[312819571,1706296251148,-1065.03,0.00036613,15]
[312819572,1706296251158,-1000.0,0.00036667,2]
[312819573,1706296251167,-6429.36,0.000367,7]
[312819574,1706296251176,-151.0,0.000367,7]
[312819575,1706296251185,-1998.1,0.000367,2]
[312819576,1706296251194,-372.0,0.000367,26]
[312819577,1706296251203,-164.46,0.000367,3]
[312819578,1706296251212,-206.0,0.00036777,17]
[312819579,1706296251222,-151.0127,0.00036798,10]
[312819580,1706296251231,-755.7081452,0.000368,2]
[312819581,1706296251240,-175.30194725,0.000369,2]
[312819582,1706296251249,-685.15809506,0.000369,2]
[312819583,1706296251258,-777.16394592,0.000369,2]
[312819584,1706296251267,-682.1224208,0.00036949,2]
[312819585,1706296251276,-184.0,0.00036953,2]
[312819586,1706296251284,-184.0,0.00036953,2]
[312819587,1706296251293,-151.0,0.00036974,7]
[312819588,1706296251303,-871.360866,0.00036974,7]
[312819589,1706296251313,-151.0,0.00036974,7]
[312819590,1706296251321,-871.360866,0.00036974,7]
[312819591,1706296251331,-505.82332,0.00036974,7]
[312819592,1706296251340,-505.82332,0.00036974,7]
[312819593,1706296251349,-481.541857,0.00036974,7]
[312819594,1706296251358,-481.541857,0.00036974,7]
[312819595,1706296251367,-675.2535577,0.00036975,2]
[312819596,1706296251376,-151.0,0.00036975,7]
[312819597,1706296251385,-151.0,0.00036975,7]
[312819598,1706296251396,-151.0,0.00036975,7]
[312819599,1706296251404,-151.0,0.00036975,7]
[312819600,1706296251414,-151.0,0.00036975,7]
[312819601,1706296251423,-310.0926496,0.0003698,14]
[312819602,1706296251432,-805.90894528,0.0003698,14]
[312819603,1706296251442,-1253.47677354,0.00036997,2]
[312819604,1706296251450,-50000.0,0.00037,7]
[312819605,1706296251459,-390660.88361639,0.00037,2]
[312819606,1706296251468,-50000.0,0.00037,15]
[312819607,1706296251477,-316.44,0.00037,15]
[312819608,1706296251486,-312.10192802,0.00037,4]
[312819609,1706296251495,-2768.0580697,0.00037,21]
[312819610,1706296251504,-669.71743374,0.00037,7]
[312819611,1706296251514,-176530.54733465,0.00037,2]
[312819612,1706296251523,-850.0,0.00037,3]
[312819613,1706296251532,-249.418381,0.00037,7]
[312819614,1706296251542,-151.0,0.00037,7]
[312819615,1706296251551,-151.0,0.00037,7]
[312819616,1706296251561,-204.07049,0.00037,7]
[312819617,1706296251570,-204.07049,0.00037,7]
[312819618,1706296251580,-151.0,0.00037,7]
[312819619,1706296251591,-151.0,0.00037,7]
[312819620,1706296251601,-160.454168,0.00037,7]
[312819621,1706296251611,-9445.72,0.00037,7]
[312819622,1706296251621,-252.39724228,0.00037,7]
[312819623,1706296251631,-151.0,0.00037,7]
[312819624,1706296251641,-151.0,0.00037,7]
[312819625,1706296251650,-151.0,0.00037,7]
[312819626,1706296251658,-151.0,0.00037,7]
[312819627,1706296251667,-151.0,0.00037,7]
[312819628,1706296251676,-871.360866,0.00037,7]
[312819629,1706296251685,-151.0,0.00037,7]
[312819630,1706296251694,-871.360866,0.00037,7]
[312819631,1706296251703,-505.82332,0.00037,7]
[312819632,1706296251712,-505.82332,0.00037,7]
[312819633,1706296251721,-481.541857,0.00037,7]
[312819634,1706296251730,-481.541857,0.00037,7]
[312819635,1706296251739,-151.0,0.00037,7]
[312819636,1706296251748,-809.763732,0.00037,7]
[312819637,1706296251757,-2603.84966,0.00037,7]
[312819638,1706296251766,-809.763732,0.00037,7]
[312819639,1706296251775,-2603.84966,0.00037,7]
[312819640,1706296251784,-465.977409,0.00037,7]
[312819641,1706296251793,-465.977409,0.00037,7]
[312819642,1706296251802,-151.0,0.00037,7]
[312819643,1706296251811,-5649.805454,0.00037,7]
[312819644,1706296251821,-5649.805454,0.00037,7]
[312819645,1706296251830,-151.0,0.00037,7]
[312819646,1706296251840,-150.57471312,0.00037047,2]
[312819647,1706296251849,-150.0,0.00037059,2]
[312819648,1706296251859,-2745.15371042,0.00037111,2]
[312819649,1706296251868,-372.0,0.000372,26]
[312819650,1706296251878,-419.27,0.0003726,2]
[312819651,1706296251887,-6429.36,0.000373,7]
[312819652,1706296251898,-151.0,0.000373,7]
[312819653,1706296251910,-151.0,0.000373,7]
[312819654,1706296251919,-9445.72,0.000373,7]
[312819655,1706296251929,-152.0,0.00037316,6]
[312819656,1706296251938,-750.56,0.00037431,2]
[312819657,1706296251948,-400.0,0.0003747,2]
[312819658,1706296251957,-300.0,0.0003747,2]
[312819659,1706296251967,-151.0127,0.00037498,12]
[312819660,1706296251976,-4346.08678097,0.0003752,2]
[312819661,1706296251987,-7488.3827928,0.0003752,2]
[312819662,1706296251996,-4722.17961091,0.0003752,2]
[312819663,1706296252005,-1847.1907774,0.0003752,2]
[312819664,1706296252015,-22407.68569728,0.00037521,2]
[312819665,1706296252025,-366.04607581,0.00037586,2]
[312819666,1706296252034,-284.08397793,0.00037586,2]
[312819667,1706296252043,-9445.72,0.000376,7]
[312819668,1706296252052,-150.0,0.00037635,2]
[312819669,1706296252062,-82816.46414968,0.00037699,2]
[312819670,1706296252071,-5649.805454,0.00037699,7]
[312819671,1706296252081,-5649.805454,0.00037699,7]
[312819672,1706296252168,-151.0,0.00037699,7]
[312819673,1706296252177,-372.0,0.000377,27]
[312819674,1706296252186,-164.46,0.000377,3]
[312819675,1706296252195,-150.57471312,0.00037791,2]
[312819676,1706296252205,-151.0127,0.00037798,10]
[312819677,1706296252214,-6429.36,0.000378,7]
[312819678,1706296252224,-1998.1,0.000378,2]
[312819679,1706296252233,-162.44,0.00037808,2]
[312819680,1706296252242,-150.0,0.00037808,2]
[312819681,1706296252251,-1253.47677354,0.00037897,2]
[312819682,1706296252260,-39153.6,0.000379,7]
[312819683,1706296252269,-1378.29,0.000379,7]
[312819684,1706296252279,-228.97593441,0.000379,10]
[312819685,1706296252288,-1654.36708896,0.000379,15]
[312819686,1706296252297,-1000.0,0.000379,10]
[312819687,1706296252307,-712.47695169,0.000379,10]
[312819688,1706296252318,-1104.05618627,0.000379,10]
[312819689,1706296252329,-163.88702767,0.000379,10]
[312819690,1706296252338,-878.66468781,0.000379,15]
[312819691,1706296252348,-371.06187563,0.000379,10]
[312819692,1706296252358,-462.95427742,0.000379,15]
[312819693,1706296252370,-305.84546388,0.000379,10]
[312819694,1706296252379,-383.58143961,0.000379,2]
[312819695,1706296252389,-672.59776311,0.000379,10]
[312819696,1706296252398,-151.0,0.000379,7]
[312819697,1706296252408,-151.0,0.000379,7]
[312819698,1706296252417,-155.230949,0.000379,7]
[312819699,1706296252426,-2301.30537444,0.000379,11]
[312819700,1706296252435,-204.07049,0.000379,7]
[312819701,1706296252444,-204.07049,0.000379,7]
[312819702,1706296252453,-204.07049,0.000379,7]
[312819703,1706296252463,-204.07049,0.000379,7]
[312819704,1706296252472,-898.22382793,0.000379,10]
[312819705,1706296252481,-164.138836,0.000379,7]
[312819706,1706296252490,-151.0,0.000379,7]
[312819707,1706296252500,-1314.82838814,0.000379,10]
[312819708,1706296252509,-9445.72,0.000379,7]
[312819709,1706296252518,-151.0,0.000379,7]
[312819710,1706296252527,-151.0,0.000379,7]
[312819711,1706296252536,-151.0,0.000379,7]
[312819712,1706296252545,-304.05136082,0.000379,10]
[312819713,1706296252554,-483.38960255,0.000379,15]
[312819714,1706296252564,-151.0,0.000379,7]
[312819715,1706296252573,-151.0,0.000379,7]
[312819716,1706296252582,-871.360866,0.000379,7]
[312819717,1706296252591,-151.0,0.000379,7]
[312819718,1706296252600,-871.360866,0.000379,7]
[312819719,1706296252610,-505.82332,0.000379,7]
[312819720,1706296252619,-505.82332,0.000379,7]
[312819721,1706296252628,-629667.186899,0.000379,3]
[312819722,1706296252637,-481.541857,0.000379,7]
[312819723,1706296252647,-481.541857,0.000379,7]
[312819724,1706296252656,-151.0,0.000379,7]
[312819725,1706296252666,-809.763732,0.000379,7]
[312819726,1706296252675,-2603.84966,0.000379,7]
[312819727,1706296252685,-809.763732,0.000379,7]
[312819728,1706296252693,-2603.84966,0.000379,7]
[312819729,1706296252703,-465.977409,0.000379,7]
[312819730,1706296252713,-465.977409,0.000379,7]
[312819731,1706296252722,-151.0,0.000379,7]